[Event "Betsys MČR v online bleskovém šachu 2021"]
[Site "Chess.com"]
[Date "2021.04.17"]
[Round "5"]
[White "Rubinus"]
[Black "TheRigos"]
[Result "0-1"]
[WhiteElo "2165"]
[BlackElo "2552"]
[TimeControl "180+1"]
[EndTime "9:46:22 PDT"]
[Termination "Uživatel TheRigos zvítězil matem"]

1. e4 {[%clk 0:02:59]} 1... f5 {[%clk 0:02:58.6]} 2. e5 {[%clk 0:02:54.1]} 2...
d6 {[%clk 0:02:59]} 3. d4 {[%clk 0:02:51.6]} 3... dxe5 {[%clk 0:02:51.2]} 4.
dxe5 {[%clk 0:02:50.2]} 4... Qxd1+ {[%clk 0:02:52.1]} 5. Kxd1 {[%clk 0:02:49.2]}
5... Nc6 {[%clk 0:02:53]} 6. f4 {[%clk 0:02:48.3]} 6... Bd7 {[%clk 0:02:50.7]}
7. c3 {[%clk 0:02:46.5]} 7... O-O-O {[%clk 0:02:51]} 8. Kc2 {[%clk 0:02:46.2]}
8... e6 {[%clk 0:02:44.2]} 9. Nf3 {[%clk 0:02:44.4]} 9... Nh6 {[%clk 0:02:20.6]}
10. h3 {[%clk 0:02:42.4]} 10... Nf7 {[%clk 0:02:19.6]} 11. Be3 {[%clk
0:02:35.9]} 11... Rg8 {[%clk 0:02:19.8]} 12. h4 {[%clk 0:02:32.6]} 12... Nh6
{[%clk 0:02:17.9]} 13. Nbd2 {[%clk 0:02:30.8]} 13... Ng4 {[%clk 0:02:18.2]} 14.
Bg1 {[%clk 0:02:30.1]} 14... Ne7 {[%clk 0:02:02.9]} 15. Bc4 {[%clk 0:02:25]}
15... a5 {[%clk 0:01:56]} 16. a4 {[%clk 0:02:23.6]} 16... h6 {[%clk 0:01:40.6]}
17. Nd4 {[%clk 0:02:21.1]} 17... Nd5 {[%clk 0:01:30.8]} 18. Bxd5 {[%clk
0:02:05.7]} 18... exd5 {[%clk 0:01:31]} 19. e6 {[%clk 0:01:58.8]} 19... Be8
{[%clk 0:01:31.1]} 20. Nxf5 {[%clk 0:01:56.8]} 20... Bg6 {[%clk 0:01:31.2]} 21.
Kb3 {[%clk 0:01:42.7]} 21... Bxf5 {[%clk 0:01:30.9]} 22. Nf3 {[%clk 0:01:41.4]}
22... Bxe6 {[%clk 0:01:25.3]} 23. Nd4 {[%clk 0:01:41.3]} 23... Bf7 {[%clk
0:01:25.5]} 24. Kc2 {[%clk 0:01:40.5]} 24... c5 {[%clk 0:01:23.6]} 25. Nf3
{[%clk 0:01:39.8]} 25... Bd6 {[%clk 0:01:20.5]} 26. g3 {[%clk 0:01:38.4]} 26...
Rge8 {[%clk 0:01:20.6]} 27. Kd2 {[%clk 0:01:37]} 27... b6 {[%clk 0:01:18.9]} 28.
h5 {[%clk 0:01:35.7]} 28... Nf6 {[%clk 0:01:18.7]} 29. Re1 {[%clk 0:01:32.3]}
29... Bxh5 {[%clk 0:01:15.6]} 30. Ne5 {[%clk 0:01:28.7]} 30... Ne4+ {[%clk
0:01:13.5]} 31. Kc1 {[%clk 0:01:22.9]} 31... Bxe5 {[%clk 0:01:13.7]} 32. Rxh5
{[%clk 0:01:20.3]} 32... Bf6 {[%clk 0:01:13.1]} 33. b4 {[%clk 0:01:16.4]} 33...
Bxc3 {[%clk 0:01:11.8]} 34. Re3 {[%clk 0:01:05.1]} 34... axb4 {[%clk 0:01:11.8]}
35. Rd3 {[%clk 0:00:57.1]} 35... d4 {[%clk 0:01:07.7]} 36. a5 {[%clk 0:00:54.3]}
36... bxa5 {[%clk 0:01:07.2]} 37. Rf5 {[%clk 0:00:47]} 37... a4 {[%clk
0:01:06.2]} 38. Rf7 {[%clk 0:00:46.7]} 38... a3 {[%clk 0:01:06.1]} 39. Kb1
{[%clk 0:00:45]} 39... b3 {[%clk 0:01:06.4]} 40. Ra7 {[%clk 0:00:41.8]} 40...
Nd2+ {[%clk 0:01:04.5]} 41. Rxd2 {[%clk 0:00:37.2]} 41... Re1+ {[%clk
0:01:05.4]} 42. Rd1 {[%clk 0:00:34.9]} 42... Rxd1# {[%clk 0:01:06.3]} 0-1

[Event "Betsys MČR v online bleskovém šachu 2021"]
[Site "Chess.com"]
[Date "2021.04.17"]
[Round "5"]
[White "pudltomik"]
[Black "bumurubac"]
[Result "0-1"]
[WhiteElo "757"]
[BlackElo "1015"]
[TimeControl "180+1"]
[EndTime "9:46:25 PDT"]
[Termination "Uživatel bumurubac zvítězil na čas"]

1. e4 {[%clk 0:03:00.9]} 1... e5 {[%clk 0:02:59.7]} 2. Nf3 {[%clk 0:02:59.4]}
2... Nc6 {[%clk 0:02:58]} 3. Nc3 {[%clk 0:02:54.3]} 3... Bc5 {[%clk 0:02:54.9]}
4. Bc4 {[%clk 0:02:50.5]} 4... Nf6 {[%clk 0:02:54.2]} 5. O-O {[%clk 0:02:49.8]}
5... Ng4 {[%clk 0:02:53.4]} 6. g3 {[%clk 0:02:47.5]} 6... Nxf2 {[%clk
0:02:53.1]} 7. Qe1 {[%clk 0:02:44.1]} 7... Nh3+ {[%clk 0:02:50.4]} 8. Kh1 {[%clk
0:02:42.2]} 8... Nf2+ {[%clk 0:02:49.7]} 9. Kg1 {[%clk 0:02:42.1]} 9... Nd3+
{[%clk 0:02:49.1]} 10. Kg2 {[%clk 0:02:35.7]} 10... Nxe1+ {[%clk 0:02:48.6]} 11.
Rxe1 {[%clk 0:02:33.3]} 11... O-O {[%clk 0:02:47.6]} 12. d3 {[%clk 0:02:30.7]}
12... d6 {[%clk 0:02:46]} 13. Ng5 {[%clk 0:02:27.3]} 13... Nd4 {[%clk
0:02:44.7]} 14. Bb3 {[%clk 0:02:14.3]} 14... Nxb3 {[%clk 0:02:43.3]} 15. axb3
{[%clk 0:02:13.8]} 15... Qxg5 {[%clk 0:02:43]} 16. Bxg5 {[%clk 0:02:11.6]} 16...
f6 {[%clk 0:02:36.5]} 17. Bd2 {[%clk 0:02:09]} 17... g5 {[%clk 0:02:34.2]} 18.
Nb5 {[%clk 0:02:03.5]} 18... c6 {[%clk 0:02:32.1]} 19. Nc7 {[%clk 0:02:02.5]}
19... Rb8 {[%clk 0:02:30.9]} 20. b4 {[%clk 0:01:59.9]} 20... Bd4 {[%clk
0:02:28.7]} 21. c3 {[%clk 0:01:48.8]} 21... Bb6 {[%clk 0:02:25.5]} 22. c4 {[%clk
0:01:06.5]} 22... Bxc7 {[%clk 0:02:24.8]} 23. b5 {[%clk 0:01:00.6]} 23... cxb5
{[%clk 0:02:24.5]} 24. cxb5 {[%clk 0:01:00.1]} 24... Bb6 {[%clk 0:02:24.4]} 25.
Be3 {[%clk 0:00:57.2]} 25... Bxe3 {[%clk 0:02:23.4]} 26. Rxe3 {[%clk 0:00:57.1]}
26... Ra8 {[%clk 0:02:22.3]} 27. h3 {[%clk 0:00:50.1]} 27... a6 {[%clk
0:02:22.2]} 28. b6 {[%clk 0:00:49]} 28... a5 {[%clk 0:02:21]} 29. b3 {[%clk
0:00:47.6]} 29... Bd7 {[%clk 0:02:18.7]} 30. Rf3 {[%clk 0:00:36.2]} 30... Be6
{[%clk 0:02:17.1]} 31. Rb1 {[%clk 0:00:34.9]} 31... a4 {[%clk 0:02:13.8]} 32.
bxa4 {[%clk 0:00:31.6]} 32... Rxa4 {[%clk 0:02:12.4]} 33. Rf2 {[%clk 0:00:30.7]}
33... f5 {[%clk 0:02:10]} 34. g4 {[%clk 0:00:22]} 34... fxg4 {[%clk 0:02:08.8]}
35. hxg4 {[%clk 0:00:21.5]} 35... Bxg4 {[%clk 0:02:07.5]} 36. Rxf8+ {[%clk
0:00:20.2]} 36... Kxf8 {[%clk 0:02:06]} 37. Kg3 {[%clk 0:00:18.8]} 37... Be6
{[%clk 0:02:05.4]} 38. Rf1+ {[%clk 0:00:15.1]} 38... Bf7 {[%clk 0:02:04.2]} 39.
Rf6 {[%clk 0:00:13.5]} 39... Kg7 {[%clk 0:02:04]} 40. Rxd6 {[%clk 0:00:12.9]}
40... Ra3 {[%clk 0:02:04]} 41. Kf3 {[%clk 0:00:10]} 41... Bh5+ {[%clk
0:02:01.7]} 42. Ke3 {[%clk 0:00:09.7]} 42... g4 {[%clk 0:02:00.3]} 43. Rd7+
{[%clk 0:00:09.3]} 43... Kg6 {[%clk 0:01:58.9]} 44. Rd8 {[%clk 0:00:08]} 44...
g3 {[%clk 0:01:58.8]} 45. Rg8+ {[%clk 0:00:07.4]} 45... Kh6 {[%clk 0:01:56.1]}
46. Rxg3 {[%clk 0:00:06.9]} 46... Rb3 {[%clk 0:01:54.4]} 47. Rg8 {[%clk
0:00:02.4]} 47... Rxb6 {[%clk 0:01:53.8]} 48. Rd8 {[%clk 0:00:01.4]} 48... Rg6
{[%clk 0:01:52.9]} 0-1

[Event "Betsys MČR v online bleskovém šachu 2021"]
[Site "Chess.com"]
[Date "2021.04.17"]
[Round "5"]
[White "Naty139"]
[Black "8_olda_8"]
[Result "1-0"]
[WhiteElo "2237"]
[BlackElo "1795"]
[TimeControl "180+1"]
[EndTime "9:46:26 PDT"]
[Termination "Uživatel Naty139 zvítězil na čas"]

1. e4 {[%clk 0:03:00.9]} 1... e6 {[%clk 0:02:59.8]} 2. d4 {[%clk 0:03:00]} 2...
c5 {[%clk 0:02:59.9]} 3. Nf3 {[%clk 0:02:55.9]} 3... cxd4 {[%clk 0:02:59.8]} 4.
Nxd4 {[%clk 0:02:56.8]} 4... a6 {[%clk 0:03:00.1]} 5. c4 {[%clk 0:02:56.5]} 5...
Qc7 {[%clk 0:02:57.2]} 6. Be2 {[%clk 0:02:55.1]} 6... Nf6 {[%clk 0:02:57.1]} 7.
Qd3 {[%clk 0:02:42]} 7... Bc5 {[%clk 0:02:45.5]} 8. O-O {[%clk 0:02:38.3]} 8...
d5 {[%clk 0:02:41.7]} 9. exd5 {[%clk 0:02:33.5]} 9... exd5 {[%clk 0:02:42.6]}
10. cxd5 {[%clk 0:02:30.3]} 10... Nxd5 {[%clk 0:02:42.4]} 11. Bf3 {[%clk
0:02:29.9]} 11... Ne7 {[%clk 0:02:37.4]} 12. Nb3 {[%clk 0:02:25.4]} 12... Bd6
{[%clk 0:02:33.2]} 13. g3 {[%clk 0:02:20.5]} 13... O-O {[%clk 0:02:29.9]} 14.
Bg5 {[%clk 0:02:16.4]} 14... Nbc6 {[%clk 0:02:17.6]} 15. Bg2 {[%clk 0:02:09.5]}
15... Bf5 {[%clk 0:02:14.6]} 16. Qf3 {[%clk 0:02:01.3]} 16... Rab8 {[%clk
0:01:56.2]} 17. Nc3 {[%clk 0:02:00.7]} 17... h6 {[%clk 0:01:54.8]} 18. Bxe7
{[%clk 0:01:47.9]} 18... Nxe7 {[%clk 0:01:55.7]} 19. Rac1 {[%clk 0:01:47.5]}
19... Qd7 {[%clk 0:01:10.6]} 20. Rfd1 {[%clk 0:01:44.1]} 20... Rfd8 {[%clk
0:01:09.6]} 21. Nc5 {[%clk 0:01:20.7]} 21... Qc8 {[%clk 0:00:31.2]} 22. Nxb7
{[%clk 0:01:19.4]} 22... Rxb7 {[%clk 0:00:26.9]} 23. Qxb7 {[%clk 0:01:17.3]}
23... Qe6 {[%clk 0:00:17.2]} 24. Re1 {[%clk 0:01:12.7]} 24... Qg6 {[%clk
0:00:15.4]} 25. Qxa6 {[%clk 0:01:06.6]} 25... Bb8 {[%clk 0:00:01.1]} 26. Qxg6
{[%clk 0:01:05.3]} 26... Nxg6 {[%clk 0:00:02]} 27. Rcd1 {[%clk 0:01:03.3]} 27...
Rc8 {[%clk 0:00:01.7]} 28. Bb7 {[%clk 0:01:01.8]} 1-0

[Event "Betsys MČR v online bleskovém šachu 2021"]
[Site "Chess.com"]
[Date "2021.04.17"]
[Round "5"]
[White "jsebesta"]
[Black "kaprasov"]
[Result "1-0"]
[WhiteElo "1663"]
[BlackElo "1874"]
[TimeControl "180+1"]
[EndTime "9:46:29 PDT"]
[Termination "Uživatel jsebesta zvítězil matem"]

1. e4 {[%clk 0:03:00.9]} 1... c5 {[%clk 0:02:56.1]} 2. c3 {[%clk 0:02:57.8]}
2... d6 {[%clk 0:02:52.2]} 3. d4 {[%clk 0:02:54.2]} 3... Nf6 {[%clk 0:02:50.9]}
4. Bd3 {[%clk 0:02:50.6]} 4... g6 {[%clk 0:02:49.9]} 5. Nf3 {[%clk 0:02:49.2]}
5... Bg7 {[%clk 0:02:49.7]} 6. O-O {[%clk 0:02:48.8]} 6... O-O {[%clk
0:02:49.2]} 7. e5 {[%clk 0:02:45.1]} 7... dxe5 {[%clk 0:02:32.7]} 8. dxe5 {[%clk
0:02:41.2]} 8... Nd5 {[%clk 0:02:26.6]} 9. Bc4 {[%clk 0:02:41.1]} 9... e6 {[%clk
0:02:26.3]} 10. Bxd5 {[%clk 0:02:34.5]} 10... Qxd5 {[%clk 0:02:25]} 11. Be3
{[%clk 0:02:35.2]} 11... b6 {[%clk 0:02:21.4]} 12. Qxd5 {[%clk 0:02:28.8]} 12...
exd5 {[%clk 0:02:21]} 13. Rd1 {[%clk 0:02:29.6]} 13... Bb7 {[%clk 0:02:21.1]}
14. Na3 {[%clk 0:02:27.5]} 14... Nd7 {[%clk 0:02:19.4]} 15. Bf4 {[%clk
0:02:24.2]} 15... Rfe8 {[%clk 0:02:17.5]} 16. Re1 {[%clk 0:02:21.6]} 16... Nf8
{[%clk 0:02:14.7]} 17. Nb5 {[%clk 0:02:17.8]} 17... Ne6 {[%clk 0:02:08.1]} 18.
Bg3 {[%clk 0:02:14.7]} 18... a6 {[%clk 0:02:00.1]} 19. Nd6 {[%clk 0:02:14.3]}
19... Re7 {[%clk 0:02:00.4]} 20. Bh4 {[%clk 0:02:14.2]} 20... Rd8 {[%clk
0:01:58.3]} 21. Bxe7 {[%clk 0:02:12.4]} 21... Rd7 {[%clk 0:01:58.1]} 22. Nxb7
{[%clk 0:02:11.9]} 22... Rxb7 {[%clk 0:01:57.1]} 23. Bf6 {[%clk 0:02:12.1]}
23... Bh6 {[%clk 0:01:54.5]} 24. h4 {[%clk 0:02:08.8]} 24... b5 {[%clk
0:01:38.6]} 25. Ng5 {[%clk 0:01:58.8]} 25... Nf4 {[%clk 0:01:34.5]} 26. e6
{[%clk 0:01:51.4]} 26... fxe6 {[%clk 0:01:24.3]} 27. Nxe6 {[%clk 0:01:49.5]}
27... Nd3 {[%clk 0:01:24.2]} 28. Re2 {[%clk 0:01:45.5]} 28... Rb6 {[%clk
0:01:15]} 29. Bg5 {[%clk 0:01:40.5]} 29... Bg7 {[%clk 0:00:57.2]} 30. Nxg7
{[%clk 0:01:37.9]} 30... Kxg7 {[%clk 0:00:58.1]} 31. Rd1 {[%clk 0:01:32.8]}
31... c4 {[%clk 0:00:56.5]} 32. Re7+ {[%clk 0:01:30.1]} 32... Kg8 {[%clk
0:00:55.4]} 33. Rd2 {[%clk 0:01:17]} 33... Nc5 {[%clk 0:00:20.2]} 34. Be3 {[%clk
0:01:11.4]} 34... Rc6 {[%clk 0:00:19.1]} 35. Bxc5 {[%clk 0:01:10.3]} 35... Rxc5
{[%clk 0:00:20]} 36. Rd7 {[%clk 0:01:09.7]} 36... a5 {[%clk 0:00:19]} 37. R2xd5
{[%clk 0:01:09.5]} 37... Rc6 {[%clk 0:00:18.1]} 38. Rxb5 {[%clk 0:01:09.1]}
38... a4 {[%clk 0:00:17.7]} 39. Rb8+ {[%clk 0:01:09.2]} 39... Rc8 {[%clk
0:00:17.2]} 40. Rxc8# {[%clk 0:01:10.1]} 1-0

[Event "Betsys MČR v online bleskovém šachu 2021"]
[Site "Chess.com"]
[Date "2021.04.17"]
[Round "5"]
[White "RadosC"]
[Black "Jakuboss22005"]
[Result "1-0"]
[WhiteElo "2504"]
[BlackElo "2065"]
[TimeControl "180+1"]
[EndTime "9:46:30 PDT"]
[Termination "Uživatel RadosC zvítězil po vzdání soupeře"]

1. e4 {[%clk 0:03:00.9]} 1... c5 {[%clk 0:02:59.9]} 2. Nf3 {[%clk 0:03:00.5]}
2... e6 {[%clk 0:02:59.9]} 3. g3 {[%clk 0:02:59.9]} 3... Nc6 {[%clk 0:02:58.7]}
4. Bg2 {[%clk 0:02:59.8]} 4... g6 {[%clk 0:02:58.9]} 5. O-O {[%clk 0:02:58.4]}
5... Bg7 {[%clk 0:02:59]} 6. c3 {[%clk 0:02:58.8]} 6... Nge7 {[%clk 0:02:54]} 7.
d4 {[%clk 0:02:57.5]} 7... cxd4 {[%clk 0:02:52.9]} 8. cxd4 {[%clk 0:02:58.4]}
8... d5 {[%clk 0:02:53]} 9. e5 {[%clk 0:02:57.8]} 9... O-O {[%clk 0:02:53]} 10.
Nc3 {[%clk 0:02:57.4]} 10... a6 {[%clk 0:02:51.9]} 11. Bg5 {[%clk 0:02:56.2]}
11... h6 {[%clk 0:02:48.3]} 12. Bf4 {[%clk 0:02:54.2]} 12... Nf5 {[%clk
0:02:28.2]} 13. Qd2 {[%clk 0:02:48.7]} 13... Kh7 {[%clk 0:02:25.6]} 14. h4
{[%clk 0:02:46.8]} 14... Bd7 {[%clk 0:02:20.4]} 15. Rad1 {[%clk 0:02:40.7]}
15... Rc8 {[%clk 0:02:14.7]} 16. h5 {[%clk 0:02:30.9]} 16... Na5 {[%clk
0:01:57.8]} 17. b3 {[%clk 0:02:25.9]} 17... Nc6 {[%clk 0:01:47.2]} 18. hxg6+
{[%clk 0:02:24.3]} 18... fxg6 {[%clk 0:01:46.9]} 19. Na4 {[%clk 0:02:20.8]}
19... Nb8 {[%clk 0:01:26.9]} 20. Nc5 {[%clk 0:02:18.4]} 20... b6 {[%clk
0:01:25]} 21. Nxd7 {[%clk 0:02:10.3]} 21... Qxd7 {[%clk 0:01:25]} 22. Bh3 {[%clk
0:02:09.8]} 22... Nc6 {[%clk 0:01:19.8]} 23. Kg2 {[%clk 0:02:04.7]} 23... Qf7
{[%clk 0:01:05.1]} 24. Rh1 {[%clk 0:02:02.8]} 24... Nfe7 {[%clk 0:00:50.4]} 25.
Bg4 {[%clk 0:01:51.8]} 25... Kg8 {[%clk 0:00:49.5]} 26. Bxh6 {[%clk 0:01:49.9]}
26... Nf5 {[%clk 0:00:33.6]} 27. Bxg7 {[%clk 0:01:42.7]} 27... Qxg7 {[%clk
0:00:30.7]} 28. Bxf5 {[%clk 0:01:38.6]} 28... Rxf5 {[%clk 0:00:29.5]} 29. Ng5
{[%clk 0:01:35.2]} 29... Rcf8 {[%clk 0:00:24.8]} 30. f4 {[%clk 0:01:34.1]} 30...
Rxg5 {[%clk 0:00:15.1]} 31. fxg5 {[%clk 0:01:33.5]} 31... Ne7 {[%clk 0:00:15.2]}
32. g4 {[%clk 0:01:31.9]} 32... Rc8 {[%clk 0:00:13.2]} 33. Rc1 {[%clk
0:01:28.4]} 33... Qf8 {[%clk 0:00:11.5]} 34. Rxc8 {[%clk 0:01:26.4]} 34... Qxc8
{[%clk 0:00:12.4]} 35. Rc1 {[%clk 0:01:22.1]} 35... Qf8 {[%clk 0:00:11.3]} 36.
Rf1 {[%clk 0:01:21.8]} 36... Qc8 {[%clk 0:00:10]} 37. Qf2 {[%clk 0:01:21.6]}
37... Qe8 {[%clk 0:00:08.9]} 38. Qf6 {[%clk 0:01:21.3]} 38... Nc6 {[%clk
0:00:07.9]} 39. Rh1 {[%clk 0:01:19.2]} 1-0

[Event "Betsys MČR v online bleskovém šachu 2021"]
[Site "Chess.com"]
[Date "2021.04.17"]
[Round "5"]
[White "misa2009"]
[Black "Berzeger"]
[Result "1-0"]
[WhiteElo "1504"]
[BlackElo "1034"]
[TimeControl "180+1"]
[EndTime "9:46:30 PDT"]
[Termination "Uživatel misa2009 zvítězil po vzdání soupeře"]

1. e4 {[%clk 0:03:00.9]} 1... e5 {[%clk 0:03:00.1]} 2. d4 {[%clk 0:03:00.7]}
2... exd4 {[%clk 0:02:58.7]} 3. Bc4 {[%clk 0:03:00.8]} 3... Nc6 {[%clk
0:02:56.7]} 4. c3 {[%clk 0:03:00.1]} 4... Bc5 {[%clk 0:02:48.5]} 5. Bxf7+ {[%clk
0:02:57.7]} 5... Kxf7 {[%clk 0:02:46.3]} 6. Qh5+ {[%clk 0:02:57.8]} 6... g6
{[%clk 0:02:42]} 7. Qd5+ {[%clk 0:02:53.6]} 7... Ke8 {[%clk 0:02:33.2]} 8. Qxc5
{[%clk 0:02:51.1]} 8... d6 {[%clk 0:02:22]} 9. Qg5 {[%clk 0:02:46.6]} 9... Qxg5
{[%clk 0:02:15.4]} 10. Bxg5 {[%clk 0:02:45.7]} 10... Nge7 {[%clk 0:02:12]} 11.
Bxe7 {[%clk 0:02:42.5]} 11... Kxe7 {[%clk 0:02:11.9]} 12. Nf3 {[%clk 0:02:40.8]}
12... Re8 {[%clk 0:01:56.1]} 13. cxd4 {[%clk 0:02:38.5]} 13... Kf8 {[%clk
0:01:54.9]} 14. Nc3 {[%clk 0:02:37.7]} 14... Bg4 {[%clk 0:01:54.3]} 15. O-O
{[%clk 0:02:36.5]} 15... Bxf3 {[%clk 0:01:53.6]} 16. gxf3 {[%clk 0:02:36.2]}
16... Nxd4 {[%clk 0:01:54.1]} 17. Kg2 {[%clk 0:02:34.6]} 17... Re5 {[%clk
0:01:48.4]} 18. f4 {[%clk 0:02:29.7]} 18... Rh5 {[%clk 0:01:41.9]} 19. Nd5
{[%clk 0:02:26.5]} 19... c6 {[%clk 0:01:30.6]} 20. Nf6 {[%clk 0:02:20.1]} 20...
Rh4 {[%clk 0:01:29.8]} 21. Kg3 {[%clk 0:02:14.2]} 21... Rh6 {[%clk 0:01:29.1]}
22. h4 {[%clk 0:02:06.8]} 22... Kg7 {[%clk 0:01:10.2]} 23. Ng4 {[%clk
0:02:04.1]} 23... Rh5 {[%clk 0:01:07]} 24. Rad1 {[%clk 0:01:56.2]} 24... Ne2+
{[%clk 0:01:01.8]} 25. Kf3 {[%clk 0:01:55.7]} 25... Rxh4 {[%clk 0:00:56.1]} 26.
Kxe2 {[%clk 0:01:48.9]} 26... Rxg4 {[%clk 0:00:56.2]} 27. Kf3 {[%clk 0:01:47.3]}
27... Rh4 {[%clk 0:00:51.7]} 28. Kg3 {[%clk 0:01:44.2]} 28... Rh5 {[%clk
0:00:48]} 29. Rxd6 {[%clk 0:01:42.8]} 29... Re8 {[%clk 0:00:44.3]} 30. e5 {[%clk
0:01:40]} 30... Re7 {[%clk 0:00:37.8]} 31. Rfd1 {[%clk 0:01:36]} 31... g5 {[%clk
0:00:33.7]} 32. Rd7 {[%clk 0:01:26.5]} 32... Rxd7 {[%clk 0:00:22.1]} 33. Rxd7+
{[%clk 0:01:25.2]} 33... Kh6 {[%clk 0:00:22.8]} 34. Rxb7 {[%clk 0:01:18.8]}
34... gxf4+ {[%clk 0:00:22.8]} 35. Kxf4 {[%clk 0:01:17.5]} 35... Rh4+ {[%clk
0:00:22.4]} 36. Kg3 {[%clk 0:01:16.4]} 36... Kg5 {[%clk 0:00:21.7]} 37. Rg7+
{[%clk 0:01:14.8]} 37... Kh5 {[%clk 0:00:19.5]} 38. Rxh7+ {[%clk 0:01:13.7]}
38... Kg5 {[%clk 0:00:17.4]} 39. Rxh4 {[%clk 0:01:13.8]} 1-0

[Event "Betsys MČR v online bleskovém šachu 2021"]
[Site "Chess.com"]
[Date "2021.04.17"]
[Round "5"]
[White "hoacin"]
[Black "kecalk"]
[Result "1-0"]
[WhiteElo "2510"]
[BlackElo "2139"]
[TimeControl "180+1"]
[EndTime "9:46:36 PDT"]
[Termination "Uživatel hoacin zvítězil po vzdání soupeře"]

1. d4 {[%clk 0:03:00.9]} 1... d5 {[%clk 0:02:57.3]} 2. c4 {[%clk 0:03:00.7]}
2... e6 {[%clk 0:02:51.3]} 3. Nf3 {[%clk 0:03:00.2]} 3... Nf6 {[%clk 0:02:51.1]}
4. Nc3 {[%clk 0:02:59.6]} 4... Be7 {[%clk 0:02:50.8]} 5. Bg5 {[%clk 0:02:58.8]}
5... Nbd7 {[%clk 0:02:44]} 6. e3 {[%clk 0:02:58.1]} 6... h6 {[%clk 0:02:39.6]}
7. Bh4 {[%clk 0:02:57.2]} 7... O-O {[%clk 0:02:39.5]} 8. Rc1 {[%clk 0:02:54.9]}
8... c5 {[%clk 0:02:38.5]} 9. cxd5 {[%clk 0:02:53.5]} 9... Nxd5 {[%clk
0:02:39.2]} 10. Nxd5 {[%clk 0:02:34.2]} 10... Bxh4 {[%clk 0:02:37.3]} 11. Nxh4
{[%clk 0:02:33]} 11... exd5 {[%clk 0:02:34.6]} 12. Nf3 {[%clk 0:02:32.3]} 12...
c4 {[%clk 0:02:33.3]} 13. Be2 {[%clk 0:02:28.8]} 13... b5 {[%clk 0:02:32]} 14.
O-O {[%clk 0:02:27.8]} 14... Bb7 {[%clk 0:02:29.5]} 15. b4 {[%clk 0:02:25.4]}
15... a5 {[%clk 0:02:28.2]} 16. Qd2 {[%clk 0:02:20.7]} 16... Nf6 {[%clk
0:02:24.9]} 17. a3 {[%clk 0:02:12.3]} 17... Ne4 {[%clk 0:02:21.3]} 18. Qb2
{[%clk 0:02:11.9]} 18... Qd6 {[%clk 0:02:12.1]} 19. Rb1 {[%clk 0:01:42.6]} 19...
axb4 {[%clk 0:01:53.5]} 20. axb4 {[%clk 0:01:32.1]} 20... Ra4 {[%clk 0:01:45.7]}
21. Nd2 {[%clk 0:01:31.5]} 21... Nxd2 {[%clk 0:01:31.3]} 22. Qxd2 {[%clk
0:01:30.7]} 22... Rfa8 {[%clk 0:01:25.8]} 23. Bd1 {[%clk 0:01:14]} 23... Ra2
{[%clk 0:01:21.3]} 24. Rb2 {[%clk 0:01:13.7]} 24... Ra1 {[%clk 0:01:16.7]} 25.
g3 {[%clk 0:01:04.8]} 25... R8a3 {[%clk 0:01:13.9]} 26. Rc2 {[%clk 0:00:59]}
26... Bc8 {[%clk 0:01:11]} 27. Bf3 {[%clk 0:00:56.3]} 27... Bf5 {[%clk
0:01:04.1]} 28. Rxa1 {[%clk 0:00:53]} 28... Rxa1+ {[%clk 0:01:04.8]} 29. Rc1
{[%clk 0:00:53]} 29... Rxc1+ {[%clk 0:01:05]} 30. Qxc1 {[%clk 0:00:53.2]} 30...
Qxb4 {[%clk 0:01:03.9]} 31. Bxd5 {[%clk 0:00:53.4]} 31... c3 {[%clk 0:00:57.8]}
32. e4 {[%clk 0:00:53.6]} 32... Qb2 {[%clk 0:00:54.8]} 33. Qf4 {[%clk
0:00:53.1]} 33... c2 {[%clk 0:00:51.3]} 34. Bxf7+ {[%clk 0:00:52.9]} 34... Kh8
{[%clk 0:00:43.9]} 35. Qb8+ {[%clk 0:00:50.8]} 1-0

[Event "Betsys MČR v online bleskovém šachu 2021"]
[Site "Chess.com"]
[Date "2021.04.17"]
[Round "5"]
[White "krystofkrizek1"]
[Black "Ladislav1969"]
[Result "1-0"]
[WhiteElo "2123"]
[BlackElo "2311"]
[TimeControl "180+1"]
[EndTime "9:46:36 PDT"]
[Termination "Uživatel krystofkrizek1 zvítězil po vzdání soupeře"]

1. d4 {[%clk 0:02:58.5]} 1... Nf6 {[%clk 0:03:00.1]} 2. Nf3 {[%clk 0:02:58.5]}
2... g6 {[%clk 0:03:00.6]} 3. e3 {[%clk 0:02:59.1]} 3... Bg7 {[%clk 0:03:00.9]}
4. Bd3 {[%clk 0:02:59.8]} 4... d5 {[%clk 0:03:01.1]} 5. b3 {[%clk 0:02:59.6]}
5... c5 {[%clk 0:03:01.2]} 6. Bb2 {[%clk 0:02:59.8]} 6... b6 {[%clk 0:03:00.8]}
7. Ne5 {[%clk 0:02:58]} 7... O-O {[%clk 0:02:59.8]} 8. h4 {[%clk 0:02:57.9]}
8... Bg4 {[%clk 0:02:41]} 9. Nxg4 {[%clk 0:02:55.1]} 9... Nxg4 {[%clk
0:02:39.4]} 10. Qxg4 {[%clk 0:02:55.6]} 10... Nc6 {[%clk 0:02:37.2]} 11. Nd2
{[%clk 0:02:50.6]} 11... e5 {[%clk 0:02:33]} 12. h5 {[%clk 0:02:38.6]} 12...
cxd4 {[%clk 0:02:25.4]} 13. exd4 {[%clk 0:02:34.8]} 13... e4 {[%clk 0:02:23.1]}
14. Be2 {[%clk 0:02:03.7]} 14... Nxd4 {[%clk 0:02:17.6]} 15. Bxd4 {[%clk
0:02:03.7]} 15... Bxd4 {[%clk 0:02:16.8]} 16. Rd1 {[%clk 0:02:04.3]} 16... f5
{[%clk 0:02:03.4]} 17. Qh3 {[%clk 0:01:56.4]} 17... g5 {[%clk 0:01:47.6]} 18.
O-O {[%clk 0:01:36.2]} 18... Rc8 {[%clk 0:01:30.3]} 19. c4 {[%clk 0:01:33.5]}
19... Be5 {[%clk 0:01:05]} 20. Nxe4 {[%clk 0:01:26.1]} 20... g4 {[%clk
0:00:54.6]} 21. Bxg4 {[%clk 0:01:19.5]} 21... fxg4 {[%clk 0:00:51.7]} 22. Qxg4+
{[%clk 0:01:20.4]} 22... Kh8 {[%clk 0:00:51.3]} 23. Rxd5 {[%clk 0:01:17.1]}
23... Qe7 {[%clk 0:00:49.5]} 24. Ng5 {[%clk 0:01:02]} 24... Rg8 {[%clk
0:00:31.1]} 25. Rxe5 {[%clk 0:00:58.9]} 25... Qf6 {[%clk 0:00:24.6]} 26. Rf5
{[%clk 0:00:52.6]} 26... Qe7 {[%clk 0:00:13.6]} 27. Qd4+ {[%clk 0:00:49.3]}
27... Rg7 {[%clk 0:00:12.1]} 28. h6 {[%clk 0:00:44.5]} 1-0